[Event "*** Titled Tuesday Blitz"]
[Site "Chess.com"]
[Date "2020.04.21"]
[Round "2"]
[White "Nellichka"]
[Black "Bacyanide"]
[Result "0-1"]
[WhiteElo "2097"]
[BlackElo "2397"]
[TimeControl "180+1"]
[EndTime "10:15:31 PDT"]
[Termination "Bacyanide won by resignation"]

1. d4 {[%clk 0:03:00.9]} 1... d5 {[%clk 0:02:59.3]} 2. c4 {[%clk 0:03:00.2]}
2... e6 {[%clk 0:02:59.1]} 3. Nc3 {[%clk 0:02:59.4]} 3... c5 {[%clk 0:02:56.1]}
4. cxd5 {[%clk 0:02:58.1]} 4... exd5 {[%clk 0:02:57]} 5. Nf3 {[%clk 0:02:58]}
5... Nf6 {[%clk 0:02:57.4]} 6. g3 {[%clk 0:02:57.8]} 6... Nc6 {[%clk 0:02:55]}
7. Bg2 {[%clk 0:02:57.1]} 7... cxd4 {[%clk 0:02:55.1]} 8. Nxd4 {[%clk
0:02:56.5]} 8... Bc5 {[%clk 0:02:55.6]} 9. Nxc6 {[%clk 0:02:49]} 9... bxc6
{[%clk 0:02:55]} 10. O-O {[%clk 0:02:49.1]} 10... O-O {[%clk 0:02:55]} 11. Bg5
{[%clk 0:02:48]} 11... h6 {[%clk 0:02:53.4]} 12. Bf4 {[%clk 0:02:45.4]} 12...
Re8 {[%clk 0:02:50.7]} 13. Rc1 {[%clk 0:02:44.4]} 13... Bf8 {[%clk 0:02:38.8]}
14. Qa4 {[%clk 0:02:41.7]} 14... Bd7 {[%clk 0:02:38.4]} 15. Rfd1 {[%clk
0:02:35.8]} 15... Qe7 {[%clk 0:02:37.3]} 16. Qb3 {[%clk 0:02:29.6]} 16... Rac8
{[%clk 0:02:32.5]} 17. a4 {[%clk 0:02:27.3]} 17... Bg4 {[%clk 0:02:27.5]} 18.
Rd2 {[%clk 0:02:24.1]} 18... Qe6 {[%clk 0:02:26.9]} 19. a5 {[%clk 0:02:21.6]}
19... Bh3 {[%clk 0:02:26.9]} 20. Bh1 {[%clk 0:02:21.2]} 20... Qf5 {[%clk
0:02:17.4]} 21. a6 {[%clk 0:02:17.6]} 21... g5 {[%clk 0:02:17.4]} 22. Be3 {[%clk
0:02:12.3]} 22... Rxe3 {[%clk 0:02:14]} 23. fxe3 {[%clk 0:02:11.4]} 23... Ng4
{[%clk 0:02:13.9]} 24. Bf3 {[%clk 0:02:04]} 24... Bc5 {[%clk 0:02:06.1]} 25. Nd1
{[%clk 0:01:56.3]} 25... Bb6 {[%clk 0:02:04.4]} 26. Qd3 {[%clk 0:01:45.9]} 26...
Qe5 {[%clk 0:02:00.7]} 27. Bxd5 {[%clk 0:01:42.6]} 27... Nxe3 {[%clk 0:01:59.4]}
28. Qg6+ {[%clk 0:01:38.4]} 28... Qg7 {[%clk 0:01:56]} 29. Qxg7+ {[%clk
0:01:36.5]} 29... Kxg7 {[%clk 0:01:55.6]} 30. Kh1 {[%clk 0:01:27.6]} 30... cxd5
{[%clk 0:01:33.8]} 31. Rxc8 {[%clk 0:01:26]} 31... Bxc8 {[%clk 0:01:34.7]} 32.
Nxe3 {[%clk 0:01:24]} 32... Bxe3 {[%clk 0:01:35.6]} 33. Rxd5 {[%clk 0:01:23.9]}
33... Bxa6 {[%clk 0:01:35.7]} 34. Rd7 {[%clk 0:01:21.1]} 34... Bxe2 {[%clk
0:01:31.9]} 35. h3 {[%clk 0:01:19]} 35... Bb6 {[%clk 0:01:28.6]} 36. Kg2 {[%clk
0:01:17.6]} 36... Bb5 {[%clk 0:01:27.5]} 37. Rb7 {[%clk 0:01:16.2]} 37... Bc6+
{[%clk 0:01:26.2]} 0-1

[Event "*** Titled Tuesday Blitz"]
[Site "Chess.com"]
[Date "2020.04.21"]
[Round "2"]
[White "OparinGrigoriy"]
[Black "Darhild"]
[Result "1-0"]
[WhiteElo "2903"]
[BlackElo "2598"]
[TimeControl "180+1"]
[EndTime "10:15:32 PDT"]
[Termination "OparinGrigoriy won by resignation"]

1. Nf3 {[%clk 0:03:00.9]} 1... c5 {[%clk 0:02:58.8]} 2. g3 {[%clk 0:03:01.8]}
2... Nc6 {[%clk 0:02:58.1]} 3. c4 {[%clk 0:03:02.7]} 3... g6 {[%clk 0:02:57.9]}
4. Bg2 {[%clk 0:03:02.8]} 4... Bg7 {[%clk 0:02:58.3]} 5. O-O {[%clk 0:03:02.6]}
5... e5 {[%clk 0:02:58.9]} 6. Nc3 {[%clk 0:03:01.4]} 6... d6 {[%clk 0:02:59.4]}
7. a3 {[%clk 0:03:01.9]} 7... a5 {[%clk 0:02:58.8]} 8. Ne1 {[%clk 0:03:01.2]}
8... Be6 {[%clk 0:02:59]} 9. d3 {[%clk 0:03:00.9]} 9... Nge7 {[%clk 0:02:59.1]}
10. Nc2 {[%clk 0:03:00.8]} 10... d5 {[%clk 0:02:59.7]} 11. cxd5 {[%clk
0:03:00.3]} 11... Nxd5 {[%clk 0:03:00.6]} 12. Bd2 {[%clk 0:03:00.4]} 12... O-O
{[%clk 0:02:56.2]} 13. Rb1 {[%clk 0:03:00.9]} 13... a4 {[%clk 0:02:29.8]} 14.
Rc1 {[%clk 0:02:51.9]} 14... Nde7 {[%clk 0:02:19.7]} 15. Na1 {[%clk 0:02:35.4]}
15... Nd4 {[%clk 0:01:51.5]} 16. Nxa4 {[%clk 0:02:30.5]} 16... Rxa4 {[%clk
0:01:48.6]} 17. e3 {[%clk 0:02:14.6]} 17... Ra7 {[%clk 0:01:32.2]} 18. exd4
{[%clk 0:02:13.1]} 18... cxd4 {[%clk 0:01:18.5]} 19. Nc2 {[%clk 0:02:12.7]}
19... Bd5 {[%clk 0:01:14.7]} 20. Nb4 {[%clk 0:02:12.7]} 20... Bxg2 {[%clk
0:01:14.1]} 21. Kxg2 {[%clk 0:02:13.6]} 21... Nd5 {[%clk 0:01:10.2]} 22. Qf3
{[%clk 0:02:11.9]} 22... Nxb4 {[%clk 0:01:08.7]} 23. Bxb4 {[%clk 0:02:12.8]}
23... Re8 {[%clk 0:01:09]} 24. Rc2 {[%clk 0:02:12]} 24... f5 {[%clk 0:00:56.1]}
25. Rfc1 {[%clk 0:02:12.1]} 25... e4 {[%clk 0:00:56.4]} 26. dxe4 {[%clk
0:02:13]} 26... fxe4 {[%clk 0:00:56.5]} 27. Qb3+ {[%clk 0:02:13.1]} 27... Kh8
{[%clk 0:00:55.3]} 28. Rc7 {[%clk 0:02:12.7]} 28... Qf6 {[%clk 0:00:21.8]} 29.
Rf7 {[%clk 0:02:06.6]} 29... Qe5 {[%clk 0:00:15.7]} 30. Rcc7 {[%clk 0:02:06.4]}
30... Rg8 {[%clk 0:00:15.3]} 31. Rxg7 {[%clk 0:02:03.8]} 31... Qxg7 {[%clk
0:00:08.8]} 32. Rxg7 {[%clk 0:02:03.8]} 32... Rxg7 {[%clk 0:00:09.7]} 33. Bc5
{[%clk 0:02:03.8]} 1-0

[Event "*** Titled Tuesday Blitz"]
[Site "Chess.com"]
[Date "2020.04.21"]
[Round "2"]
[White "Slovak_fighter2000"]
[Black "Playgood28"]
[Result "1-0"]
[WhiteElo "2555"]
[BlackElo "2205"]
[TimeControl "180+1"]
[EndTime "10:15:38 PDT"]
[Termination "Slovak_fighter2000 won by resignation"]

1. d4 {[%clk 0:02:41.6]} 1... f5 {[%clk 0:02:58.6]} 2. h3 {[%clk 0:02:40.4]}
2... d5 {[%clk 0:02:54.5]} 3. g4 {[%clk 0:02:38.3]} 3... fxg4 {[%clk 0:02:53.9]}
4. hxg4 {[%clk 0:02:38.8]} 4... Nf6 {[%clk 0:02:53.4]} 5. f3 {[%clk 0:02:33.1]}
5... Qd6 {[%clk 0:02:34.2]} 6. Kf2 {[%clk 0:02:27.1]} 6... g6 {[%clk 0:02:33.9]}
7. e3 {[%clk 0:02:19.2]} 7... Bg7 {[%clk 0:02:31.9]} 8. Nc3 {[%clk 0:02:17.3]}
8... O-O {[%clk 0:02:28.6]} 9. Kg2 {[%clk 0:02:10.3]} 9... e5 {[%clk 0:02:22.3]}
10. dxe5 {[%clk 0:02:07.6]} 10... Qxe5 {[%clk 0:02:22]} 11. Qd4 {[%clk
0:02:05.9]} 11... Qe6 {[%clk 0:02:09.2]} 12. Nh3 {[%clk 0:01:47.7]} 12... Nc6
{[%clk 0:01:58.4]} 13. Qd1 {[%clk 0:01:43.6]} 13... Ne7 {[%clk 0:01:11.3]} 14.
Nf4 {[%clk 0:01:30.4]} 14... Qd6 {[%clk 0:01:09.4]} 15. Bd3 {[%clk 0:01:26.3]}
15... c5 {[%clk 0:01:02.4]} 16. e4 {[%clk 0:01:00.4]} 16... dxe4 {[%clk
0:00:56]} 17. Bc4+ {[%clk 0:00:59.1]} 17... Kh8 {[%clk 0:00:55.4]} 18. Qxd6
{[%clk 0:00:46.4]} 1-0

[Event "*** Titled Tuesday Blitz"]
[Site "Chess.com"]
[Date "2020.04.21"]
[Round "2"]
[White "Olga_Girya"]
[Black "Akhayan"]
[Result "0-1"]
[WhiteElo "2464"]
[BlackElo "2278"]
[TimeControl "180+1"]
[EndTime "10:15:39 PDT"]
[Termination "Akhayan won by checkmate"]

1. d4 {[%clk 0:03:00.9]} 1... Nf6 {[%clk 0:02:59.2]} 2. c4 {[%clk 0:03:00.1]}
2... e6 {[%clk 0:02:59.2]} 3. Nf3 {[%clk 0:03:00]} 3... d5 {[%clk 0:02:59.2]} 4.
Bg5 {[%clk 0:02:58.4]} 4... Be7 {[%clk 0:02:58.6]} 5. e3 {[%clk 0:02:57.9]} 5...
O-O {[%clk 0:02:58.2]} 6. Qc2 {[%clk 0:02:57.6]} 6... c5 {[%clk 0:02:52.7]} 7.
dxc5 {[%clk 0:02:50.5]} 7... Na6 {[%clk 0:02:44]} 8. cxd5 {[%clk 0:02:43.5]}
8... exd5 {[%clk 0:02:29]} 9. Bxa6 {[%clk 0:02:41]} 9... Qa5+ {[%clk 0:02:26.8]}
10. Nc3 {[%clk 0:02:35.5]} 10... Qxa6 {[%clk 0:02:26.7]} 11. Bxf6 {[%clk
0:02:21.6]} 11... Bxf6 {[%clk 0:02:10]} 12. Nxd5 {[%clk 0:02:21.5]} 12... Qa5+
{[%clk 0:02:06.9]} 13. b4 {[%clk 0:02:12.9]} 13... Qd8 {[%clk 0:02:04.8]} 14.
Rd1 {[%clk 0:02:03.9]} 14... Bg4 {[%clk 0:02:00.1]} 15. O-O {[%clk 0:01:43.3]}
15... Bxf3 {[%clk 0:01:55.6]} 16. gxf3 {[%clk 0:01:44.2]} 16... Be5 {[%clk
0:01:26.9]} 17. f4 {[%clk 0:01:42.6]} 17... Qh4 {[%clk 0:01:21.9]} 18. Qf5
{[%clk 0:01:28.8]} 18... Rae8 {[%clk 0:01:04.8]} 19. fxe5 {[%clk 0:01:12.5]}
19... Re6 {[%clk 0:00:58.8]} 20. Kh1 {[%clk 0:01:05.5]} 20... Rh6 {[%clk
0:00:56.6]} 21. Qf4 {[%clk 0:01:05.3]} 21... Qh5 {[%clk 0:00:53]} 22. Rg1 {[%clk
0:00:59.3]} 22... Kh8 {[%clk 0:00:52.6]} 23. Qg4 {[%clk 0:00:55.6]} 23... Qxh2#
{[%clk 0:00:50.4]} 0-1

[Event "*** Titled Tuesday Blitz"]
[Site "Chess.com"]
[Date "2020.04.21"]
[Round "2"]
[White "InitiatingASC"]
[Black "MikeSailer"]
[Result "1-0"]
[WhiteElo "2415"]
[BlackElo "2129"]
[TimeControl "180+1"]
[EndTime "10:15:43 PDT"]
[Termination "InitiatingASC won by resignation"]

1. d4 {[%clk 0:03:00.9]} 1... d5 {[%clk 0:02:58.3]} 2. c4 {[%clk 0:03:00.2]}
2... Bf5 {[%clk 0:02:56.6]} 3. Nc3 {[%clk 0:02:59.3]} 3... e6 {[%clk 0:02:56]}
4. cxd5 {[%clk 0:02:55.4]} 4... exd5 {[%clk 0:02:54.5]} 5. Bf4 {[%clk 0:02:56]}
5... Nc6 {[%clk 0:02:53]} 6. e3 {[%clk 0:02:56.3]} 6... Nf6 {[%clk 0:02:50.8]}
7. Bd3 {[%clk 0:02:52.9]} 7... Bxd3 {[%clk 0:02:47.9]} 8. Qxd3 {[%clk
0:02:52.4]} 8... Bd6 {[%clk 0:02:43.6]} 9. Nge2 {[%clk 0:02:51.2]} 9... O-O
{[%clk 0:02:36.6]} 10. O-O {[%clk 0:02:48]} 10... Bxf4 {[%clk 0:02:35.9]} 11.
Nxf4 {[%clk 0:02:47.6]} 11... Ne7 {[%clk 0:02:35.6]} 12. b4 {[%clk 0:02:39.2]}
12... a6 {[%clk 0:02:14]} 13. a4 {[%clk 0:02:38.4]} 13... Re8 {[%clk 0:02:12.8]}
14. b5 {[%clk 0:02:33.5]} 14... axb5 {[%clk 0:01:57.6]} 15. axb5 {[%clk
0:02:32.5]} 15... Qd6 {[%clk 0:01:50.4]} 16. Qc2 {[%clk 0:02:22]} 16... Ng6
{[%clk 0:01:44.5]} 17. Nce2 {[%clk 0:02:11.4]} 17... Nxf4 {[%clk 0:01:41.6]} 18.
Nxf4 {[%clk 0:02:11.4]} 18... Ne4 {[%clk 0:01:37.2]} 19. Rfc1 {[%clk 0:01:57.9]}
19... Rxa1 {[%clk 0:01:34.3]} 20. Rxa1 {[%clk 0:01:57.4]} 20... c6 {[%clk
0:01:06.4]} 21. bxc6 {[%clk 0:01:44.3]} 21... bxc6 {[%clk 0:01:05.4]} 22. Nd3
{[%clk 0:01:36.2]} 22... h5 {[%clk 0:00:54.1]} 23. Ra6 {[%clk 0:01:31.3]} 23...
Re6 {[%clk 0:00:50.6]} 24. Ne5 {[%clk 0:01:27.2]} 24... Qb4 {[%clk 0:00:43.4]}
25. Nd3 {[%clk 0:01:14.4]} 25... Nc3 {[%clk 0:00:31.8]} 26. Nxb4 {[%clk
0:01:12.7]} 1-0

[Event "*** Titled Tuesday Blitz"]
[Site "Chess.com"]
[Date "2020.04.21"]
[Round "2"]
[White "renehp"]
[Black "pgradalski"]
[Result "1-0"]
[WhiteElo "2439"]
[BlackElo "2206"]
[TimeControl "180+1"]
[EndTime "10:15:45 PDT"]
[Termination "renehp won by resignation"]

1. e4 {[%clk 0:03:00]} 1... e6 {[%clk 0:02:59.3]} 2. d4 {[%clk 0:02:59.4]} 2...
d5 {[%clk 0:02:59.3]} 3. Nc3 {[%clk 0:02:59.2]} 3... Nc6 {[%clk 0:02:55.1]} 4.
Bb5 {[%clk 0:02:57.8]} 4... Nf6 {[%clk 0:02:41.8]} 5. e5 {[%clk 0:02:57.4]} 5...
Nd7 {[%clk 0:02:41.6]} 6. f4 {[%clk 0:02:57.6]} 6... a6 {[%clk 0:02:27.7]} 7.
Bxc6 {[%clk 0:02:57.3]} 7... bxc6 {[%clk 0:02:27.4]} 8. Nf3 {[%clk 0:02:57.3]}
8... c5 {[%clk 0:02:19.5]} 9. O-O {[%clk 0:02:57]} 9... Be7 {[%clk 0:02:07]} 10.
Kh1 {[%clk 0:02:54.4]} 10... Bb7 {[%clk 0:02:01.5]} 11. Ne2 {[%clk 0:02:54]}
11... cxd4 {[%clk 0:01:56.2]} 12. Nexd4 {[%clk 0:02:53]} 12... c5 {[%clk
0:01:56.2]} 13. Ne2 {[%clk 0:02:50.5]} 13... Qb6 {[%clk 0:01:52.8]} 14. c3
{[%clk 0:02:48.9]} 14... h6 {[%clk 0:01:43.8]} 15. Ng3 {[%clk 0:02:48.4]} 15...
O-O {[%clk 0:01:41]} 16. f5 {[%clk 0:02:48.3]} 16... f6 {[%clk 0:01:33.5]} 17.
fxe6 {[%clk 0:02:44.4]} 17... Qxe6 {[%clk 0:01:30.3]} 18. exf6 {[%clk
0:02:44.3]} 18... Bxf6 {[%clk 0:01:25.9]} 19. Re1 {[%clk 0:02:38.2]} 19... Qd6
{[%clk 0:01:17.2]} 20. Nf5 {[%clk 0:02:32.3]} 20... Qc7 {[%clk 0:00:57]} 21.
Ne7+ {[%clk 0:02:27.4]} 21... Bxe7 {[%clk 0:00:53.3]} 22. Rxe7 {[%clk
0:02:28.3]} 22... Qd6 {[%clk 0:00:48.5]} 23. Qe2 {[%clk 0:02:26.7]} 23... d4
{[%clk 0:00:39.9]} 24. cxd4 {[%clk 0:02:15.6]} 24... Bxf3 {[%clk 0:00:37.7]} 25.
gxf3 {[%clk 0:02:15.8]} 25... cxd4 {[%clk 0:00:34.4]} 26. Bd2 {[%clk 0:02:15.1]}
26... Nc5 {[%clk 0:00:27.1]} 27. Rg1 {[%clk 0:02:12.7]} 27... Qf6 {[%clk
0:00:21.5]} 28. Rexg7+ {[%clk 0:02:04.5]} 28... Qxg7 {[%clk 0:00:21.1]} 29. Qc4+
{[%clk 0:02:03.7]} 1-0

[Event "*** Titled Tuesday Blitz"]
[Site "Chess.com"]
[Date "2020.04.21"]
[Round "2"]
[White "garfield_pg"]
[Black "1g41-0"]
[Result "0-1"]
[WhiteElo "2202"]
[BlackElo "2435"]
[TimeControl "180+1"]
[EndTime "10:15:51 PDT"]
[Termination "1g41-0 won by resignation"]

1. e4 {[%clk 0:02:40]} 1... g6 {[%clk 0:02:55.7]} 2. d4 {[%clk 0:02:39.1]} 2...
Bg7 {[%clk 0:02:56.4]} 3. Nc3 {[%clk 0:02:38.6]} 3... c6 {[%clk 0:02:56.9]} 4.
Nf3 {[%clk 0:02:35.5]} 4... d5 {[%clk 0:02:56.9]} 5. h3 {[%clk 0:02:35.6]} 5...
dxe4 {[%clk 0:02:56.5]} 6. Nxe4 {[%clk 0:02:36.5]} 6... Nf6 {[%clk 0:02:56.6]}
7. Nxf6+ {[%clk 0:02:36.5]} 7... exf6 {[%clk 0:02:57.5]} 8. Bd3 {[%clk
0:02:33.2]} 8... O-O {[%clk 0:02:56.9]} 9. O-O {[%clk 0:02:33]} 9... Be6 {[%clk
0:02:56.4]} 10. Re1 {[%clk 0:02:32]} 10... Nd7 {[%clk 0:02:56.8]} 11. c3 {[%clk
0:02:31.1]} 11... b5 {[%clk 0:02:56.8]} 12. Bf4 {[%clk 0:02:30.1]} 12... Nb6
{[%clk 0:02:56.8]} 13. Qd2 {[%clk 0:02:28.4]} 13... a5 {[%clk 0:02:55.3]} 14.
Bh6 {[%clk 0:02:27.3]} 14... a4 {[%clk 0:02:51.8]} 15. Bxg7 {[%clk 0:02:23.8]}
15... Kxg7 {[%clk 0:02:52.7]} 16. Qc2 {[%clk 0:02:10.2]} 16... Bd5 {[%clk
0:02:48.8]} 17. Nd2 {[%clk 0:02:05.2]} 17... f5 {[%clk 0:02:47.8]} 18. b3 {[%clk
0:02:04.6]} 18... Qg5 {[%clk 0:02:42.5]} 19. Bf1 {[%clk 0:01:52.2]} 19... axb3
{[%clk 0:02:22.4]} 20. axb3 {[%clk 0:01:50.1]} 20... Rfe8 {[%clk 0:02:23]} 21.
c4 {[%clk 0:01:42.1]} 21... Rxa1 {[%clk 0:01:54.6]} 22. Rxa1 {[%clk 0:01:40.4]}
22... bxc4 {[%clk 0:01:51.1]} 23. bxc4 {[%clk 0:01:36.9]} 23... Be4 {[%clk
0:01:49.3]} 24. Nxe4 {[%clk 0:01:31.7]} 24... fxe4 {[%clk 0:01:50.2]} 25. Rb1
{[%clk 0:01:17]} 25... Qd8 {[%clk 0:01:47.7]} 26. Qc3 {[%clk 0:01:04.9]} 26...
Kg8 {[%clk 0:01:47.3]} 27. g3 {[%clk 0:00:58.5]} 27... Qc7 {[%clk 0:01:45.8]}
28. Bg2 {[%clk 0:00:57.2]} 28... e3 {[%clk 0:01:27.5]} 29. fxe3 {[%clk 0:00:47]}
29... Qxg3 {[%clk 0:01:26.5]} 30. Rxb6 {[%clk 0:00:45.1]} 30... Rxe3 {[%clk
0:01:26.7]} 31. Qxe3 {[%clk 0:00:28]} 31... Qxe3+ {[%clk 0:01:27.6]} 0-1

[Event "*** Titled Tuesday Blitz"]
[Site "Chess.com"]
[Date "2020.04.21"]
[Round "2"]
[White "White_Ghost"]
[Black "hazy13"]
[Result "1-0"]
[WhiteElo "2440"]
[BlackElo "2209"]
[TimeControl "180+1"]
[EndTime "10:15:53 PDT"]
[Termination "White_Ghost won by resignation"]

1. d4 {[%clk 0:02:59.6]} 1... d5 {[%clk 0:02:59.5]} 2. c4 {[%clk 0:02:57.9]}
2... c6 {[%clk 0:02:59.4]} 3. cxd5 {[%clk 0:02:58.8]} 3... cxd5 {[%clk
0:02:58.3]} 4. Nc3 {[%clk 0:02:59.7]} 4... Nf6 {[%clk 0:02:57.1]} 5. Bf4 {[%clk
0:03:00.2]} 5... e6 {[%clk 0:02:52.4]} 6. e3 {[%clk 0:03:01.1]} 6... Be7 {[%clk
0:02:47.6]} 7. Rc1 {[%clk 0:02:59.8]} 7... O-O {[%clk 0:02:46.4]} 8. Bd3 {[%clk
0:02:59.5]} 8... a6 {[%clk 0:02:46]} 9. Nge2 {[%clk 0:02:58.6]} 9... Nc6 {[%clk
0:02:43.4]} 10. h3 {[%clk 0:02:58.3]} 10... Bd7 {[%clk 0:02:42.2]} 11. O-O
{[%clk 0:02:57.9]} 11... Rc8 {[%clk 0:02:41.8]} 12. Bh2 {[%clk 0:02:53.5]} 12...
Na5 {[%clk 0:02:31.1]} 13. Na4 {[%clk 0:02:42.8]} 13... Nc4 {[%clk 0:02:20]} 14.
Bxc4 {[%clk 0:02:41.9]} 14... dxc4 {[%clk 0:02:19.7]} 15. Nac3 {[%clk 0:02:40]}
15... b5 {[%clk 0:02:18.3]} 16. a3 {[%clk 0:02:40.4]} 16... Bc6 {[%clk
0:02:07.9]} 17. f3 {[%clk 0:02:38.2]} 17... Qd7 {[%clk 0:01:58.2]} 18. Qc2
{[%clk 0:02:34.3]} 18... Qb7 {[%clk 0:01:52.6]} 19. Rfd1 {[%clk 0:02:24.4]}
19... a5 {[%clk 0:01:41.4]} 20. Be5 {[%clk 0:02:16.8]} 20... b4 {[%clk
0:01:30.1]} 21. axb4 {[%clk 0:02:14.6]} 21... axb4 {[%clk 0:01:31]} 22. Nb1
{[%clk 0:02:11.7]} 22... Nd5 {[%clk 0:00:46.6]} 23. Kf2 {[%clk 0:02:11.2]} 23...
b3 {[%clk 0:00:33]} 24. Qxc4 {[%clk 0:02:05.7]} 24... Nxe3 {[%clk 0:00:20.5]}
25. Kxe3 {[%clk 0:02:04.8]} 25... Bxf3 {[%clk 0:00:20]} 26. Qd3 {[%clk
0:02:00.8]} 26... Bxg2 {[%clk 0:00:18.8]} 27. Kf2 {[%clk 0:01:51]} 27... Be4
{[%clk 0:00:16.5]} 28. Qg3 {[%clk 0:01:45.6]} 28... f6 {[%clk 0:00:11.7]} 29.
Rg1 {[%clk 0:01:44.1]} 29... Bb4 {[%clk 0:00:08.9]} 30. Bc7 {[%clk 0:01:39.9]}
30... Bc2 {[%clk 0:00:05.3]} 1-0

[Event "*** Titled Tuesday Blitz"]
[Site "Chess.com"]
[Date "2020.04.21"]
[Round "2"]
[White "gena217"]
[Black "Bykov_Egor"]
[Result "1-0"]
[WhiteElo "2906"]
[BlackElo "2599"]
[TimeControl "180+1"]
[EndTime "10:16:00 PDT"]
[Termination "gena217 won by resignation"]

1. e4 {[%clk 0:02:43.8]} 1... e5 {[%clk 0:02:59.7]} 2. Nf3 {[%clk 0:02:42.5]}
2... Nc6 {[%clk 0:02:59.8]} 3. Bb5 {[%clk 0:02:42.9]} 3... a6 {[%clk 0:02:59.6]}
4. Ba4 {[%clk 0:02:42.8]} 4... Nf6 {[%clk 0:02:58.8]} 5. O-O {[%clk 0:02:43.4]}
5... Be7 {[%clk 0:02:59.2]} 6. d3 {[%clk 0:02:43.4]} 6... b5 {[%clk 0:02:59]} 7.
Bb3 {[%clk 0:02:43.7]} 7... d6 {[%clk 0:02:59.6]} 8. a3 {[%clk 0:02:42.8]} 8...
O-O {[%clk 0:02:59.6]} 9. Nc3 {[%clk 0:02:42.4]} 9... Bg4 {[%clk 0:02:50.1]} 10.
Be3 {[%clk 0:02:41.5]} 10... Nd4 {[%clk 0:02:49]} 11. Bxd4 {[%clk 0:02:41.4]}
11... exd4 {[%clk 0:02:49.9]} 12. Nd5 {[%clk 0:02:42.1]} 12... Nd7 {[%clk
0:02:47.9]} 13. h3 {[%clk 0:02:38.5]} 13... Bxf3 {[%clk 0:02:48.1]} 14. Qxf3
{[%clk 0:02:39.4]} 14... c6 {[%clk 0:02:47.5]} 15. Nxe7+ {[%clk 0:02:39.5]}
15... Qxe7 {[%clk 0:02:48.4]} 16. Qg3 {[%clk 0:02:40.2]} 16... a5 {[%clk
0:02:33.7]} 17. f4 {[%clk 0:02:38]} 17... Nb6 {[%clk 0:02:27.3]} 18. Rae1 {[%clk
0:02:33.2]} 18... c5 {[%clk 0:02:21.5]} 19. e5 {[%clk 0:02:31.8]} 19... c4
{[%clk 0:01:43.5]} 20. f5 {[%clk 0:02:31]} 20... Qd7 {[%clk 0:01:25]} 21. f6
{[%clk 0:02:16.5]} 21... g6 {[%clk 0:01:25.1]} 22. Qg5 {[%clk 0:02:15.5]} 22...
Kh8 {[%clk 0:01:21.2]} 23. Ba2 {[%clk 0:01:48.1]} 23... Rae8 {[%clk 0:01:05.6]}
24. Rf4 {[%clk 0:01:44.8]} 24... Rg8 {[%clk 0:00:43]} 25. Rxd4 {[%clk
0:01:43.9]} 25... Qe6 {[%clk 0:00:32.1]} 26. Rxd6 {[%clk 0:01:38.2]} 26... Qxd6
{[%clk 0:00:31.9]} 27. exd6 {[%clk 0:01:39.1]} 27... Rxe1+ {[%clk 0:00:32.8]}
28. Kh2 {[%clk 0:01:39.8]} 28... Re6 {[%clk 0:00:27.8]} 29. Qc5 {[%clk
0:01:32.6]} 29... Rc8 {[%clk 0:00:23.1]} 30. Qxb6 {[%clk 0:01:32.2]} 1-0

[Event "*** Titled Tuesday Blitz"]
[Site "Chess.com"]
[Date "2020.04.21"]
[Round "2"]
[White "luca_va99"]
[Black "pooh2012"]
[Result "0-1"]
[WhiteElo "2058"]
[BlackElo "2498"]
[TimeControl "180+1"]
[EndTime "10:16:00 PDT"]
[Termination "pooh2012 won by resignation"]

1. d4 {[%clk 0:03:00.9]} 1... Nf6 {[%clk 0:02:58.6]} 2. c4 {[%clk 0:03:01.3]}
2... e6 {[%clk 0:02:58.6]} 3. Nc3 {[%clk 0:03:01.7]} 3... Bb4 {[%clk 0:02:58.5]}
4. Qc2 {[%clk 0:03:02.3]} 4... O-O {[%clk 0:02:58.3]} 5. Nf3 {[%clk 0:02:58.3]}
5... c5 {[%clk 0:02:54.5]} 6. dxc5 {[%clk 0:02:54.1]} 6... Na6 {[%clk
0:02:53.5]} 7. g3 {[%clk 0:02:55]} 7... Nxc5 {[%clk 0:02:53.3]} 8. Bg2 {[%clk
0:02:55.9]} 8... b6 {[%clk 0:02:50]} 9. O-O {[%clk 0:02:56.8]} 9... Bb7 {[%clk
0:02:49.3]} 10. Nb5 {[%clk 0:02:48.5]} 10... Be4 {[%clk 0:02:40.6]} 11. Qd1
{[%clk 0:02:47.3]} 11... Nb7 {[%clk 0:02:19.1]} 12. a3 {[%clk 0:02:22.4]} 12...
Be7 {[%clk 0:02:15.5]} 13. b4 {[%clk 0:01:40]} 13... a6 {[%clk 0:02:08.4]} 14.
Nc3 {[%clk 0:01:39.7]} 14... d5 {[%clk 0:02:06.4]} 15. cxd5 {[%clk 0:00:54.7]}
15... exd5 {[%clk 0:02:01.8]} 16. Bb2 {[%clk 0:00:46.3]} 16... Nd6 {[%clk
0:01:54.7]} 17. Rc1 {[%clk 0:00:34.9]} 17... Rc8 {[%clk 0:01:44.5]} 18. Nxe4
{[%clk 0:00:34]} 18... dxe4 {[%clk 0:01:38.7]} 19. Ne5 {[%clk 0:00:28.5]} 19...
Qe8 {[%clk 0:01:33.8]} 20. Qd4 {[%clk 0:00:22.1]} 20... Qb5 {[%clk 0:01:27.9]}
21. Nd7 {[%clk 0:00:04.6]} 21... Qxd7 {[%clk 0:01:26]} 22. Qxb6 {[%clk
0:00:04.3]} 22... Nc4 {[%clk 0:01:24.5]} 23. Qxa6 {[%clk 0:00:03]} 23... Nxb2
{[%clk 0:01:23.9]} 24. Rb1 {[%clk 0:00:02.2]} 24... Nc4 {[%clk 0:01:23.2]} 25.
Qa5 {[%clk 0:00:01.4]} 0-1